bitfinex/quotes_ETHUSD_20240701
["timestamp","ask_amount","ask_price","bid_price","bid_amount"]
[1719833927409,0.49983267,3465.3,3465.2,0.919]
[1719833929699,2.4038,3465.5,3465.2,0.919]
[1719833930019,0.49982627,3465.4,3465.2,0.919]
[1719833930191,0.49982627,3465.3,3465.2,0.919]
[1719833930391,0.49982627,3465.4,3465.0,0.919]
[1719833930996,0.04251808,3465.3,3465.0,0.919]
[1719833931197,0.49982627,3465.2,3465.0,0.919]
[1719833931631,0.0424214,3465.1,3464.5,2.88639]
[1719833931936,0.49982627,3465.0,3464.7,0.919]
[1719833932100,0.54219932,3465.0,3464.7,0.919]
[1719833932298,0.49982627,3464.9,3464.7,0.919]
[1719833932500,0.54216775,3464.9,3464.7,0.919]
[1719833932830,0.49982627,3464.8,3464.7,0.919]
[1719833933028,0.04234148,3464.9,3464.7,0.919]
[1719833933210,0.54217081,3464.8,3464.7,0.919]
[1719833935531,0.54217081,3464.8,3464.1,2.88672]
[1719833935735,3.38613769,3464.7,3464.4,0.919]
[1719833935936,0.49987769,3464.6,3464.4,0.919]
[1719833936236,0.49992556,3464.5,3464.4,0.919]
[1719833936734,0.54207397,3464.5,3464.1,2.88674]
[1719833936934,0.04214805,3464.5,3464.4,0.919]
[1719833937117,0.34281308,3464.8,3464.4,0.919]
[1719833937316,0.04222829,3464.5,3464.4,0.919]
[1719833937503,2.88609,3464.9,3464.2,2.88666]
[1719833937704,0.04222352,3464.5,3464.4,0.919]
[1719833937904,3.693042,3464.9,3464.4,0.919]
[1719833938138,0.04222352,3464.5,3464.4,0.919]
[1719833938303,3.693042,3464.9,3464.4,0.919]
[1719833938636,0.04218874,3464.5,3464.2,5.77326]
[1719833938936,2.2975,3465.0,3464.4,0.919]
[1719833939143,0.49990053,3464.9,3464.7,0.919]
[1719833939436,3.104433,3465.0,3464.7,0.919]
[1719833939643,0.49990055,3464.9,3464.7,0.919]
[1719833939846,0.49990055,3464.8,3464.7,0.919]
[1719833941644,3.104433,3465.0,3464.7,0.919]
[1719833941810,0.49989427,3464.8,3464.7,0.919]
[1719833943220,0.49989427,3464.8,3464.5,0.919]
[1719833943512,0.49989427,3464.7,3464.5,0.919]
[1719833943724,0.49989427,3464.8,3464.5,0.919]
[1719833944050,0.49989427,3464.7,3464.5,0.919]
[1719833944233,0.49989427,3464.8,3464.5,0.919]
[1719833944903,0.56430713,3464.9,3464.5,0.919]
[1719833945110,2.2975,3465.0,3463.6,1.3732]
[1719833945111,0.49991749,3464.7,3463.6,1.3732]
[1719833945309,0.49991749,3464.6,3464.0,0.919]
[1719833945542,3.38629749,3464.6,3464.0,0.919]
[1719833945743,0.49991749,3464.5,3464.0,0.919]
[1719833946037,0.54210227,3464.5,3464.0,0.919]
[1719833946239,0.49991749,3464.4,3464.0,0.919]
[1719833946633,0.04205197,3464.3,3464.0,0.919]
[1719833947242,2.88638,3464.6,3464.2,0.919]
[1719833947405,0.4999544,3464.5,3464.2,0.919]
[1719833947611,0.4999544,3464.4,3464.2,0.919]
[1719833947810,0.4999544,3464.3,3464.2,0.919]
[1719833948048,3.68284742,3464.6,3464.2,0.919]
[1719833948252,0.49995263,3464.3,3464.2,0.919]
[1719833948635,0.99990481,3464.3,3464.2,0.919]
[1719833949525,1.38853329,3464.3,3463.8,0.919]
[1719833949730,1.38853329,3464.3,3463.3,1.3732]
[1719833949731,2.97335218,3464.2,3463.5,2.88725]
[1719833950024,0.49995218,3464.1,3463.8,0.919]
[1719833951238,5.36007,3464.2,3463.8,0.919]
[1719833951448,0.50000605,3464.1,3463.8,0.919]
[1719833951617,5.36007,3464.2,3463.8,0.919]
[1719833951820,0.5000085,3464.1,3463.8,0.919]
[1719833952051,5.36007,3464.2,3463.8,0.919]
[1719833952241,0.50000629,3464.1,3463.8,0.919]
[1719833952444,5.36007,3464.2,3463.8,0.919]
[1719833952756,0.5000028,3464.1,3463.8,0.919]
[1719833952942,5.36007,3464.2,3463.8,0.919]
[1719833953649,0.50000259,3464.1,3463.8,0.919]
[1719833953847,5.36007,3464.2,3463.8,0.919]
[1719833954069,0.50000562,3464.1,3463.8,0.919]
[1719833954214,5.36007,3464.2,3463.8,0.919]
[1719833954633,0.50001468,3464.1,3463.8,0.919]
[1719833954919,5.36007,3464.2,3463.8,0.919]
[1719833955121,0.5000242,3464.1,3463.8,0.919]
[1719833955385,2.8868,3464.1,3463.3,2.88741]
[1719833955523,0.5000267,3464.0,3463.4,0.919]
[1719833955852,0.50004301,3463.9,3463.4,0.919]
[1719833956068,0.87465942,3464.1,3463.4,0.919]
[1719833956224,0.50004425,3464.0,3463.4,0.919]
[1719833956552,0.87465942,3464.1,3463.1,0.00606425]
[1719833956553,2.88704,3463.8,3463.1,2.89362425]
[1719833956728,2.4252,3463.7,3463.5,0.919]
[1719833957623,2.3749,3464.0,3463.5,0.919]
[1719833957822,0.50005422,3463.9,3463.6,2.88711]
[1719833958057,2.3749,3464.4,3463.8,0.919]
[1719833958058,5.2614,3464.4,3463.8,0.919]
[1719833958258,0.50000605,3464.3,3464.2,0.919]
[1719833960326,3.0,3464.6,3464.2,0.919]
[1719833960727,0.54058237,3464.5,3464.2,0.919]
[1719833960956,0.49995846,3464.4,3464.0,2.88682]
[1719833961173,0.49995846,3464.4,3464.3,0.919]
[1719833961174,0.04056721,3464.4,3464.3,0.919]
[1719833961348,3.0,3464.8,3464.3,0.919]
[1719833961520,0.04058068,3464.4,3464.0,2.88682]
[1719833961736,3.0,3465.0,3464.2,0.919]
[1719833961940,0.04054055,3464.3,3464.2,0.919]
[1719833962238,3.0,3464.8,3464.2,0.919]
[1719833962438,3.0,3464.8,3464.1,2.88673]
[1719833962439,0.04047356,3464.3,3464.1,2.88673]
[1719833962662,3.0,3464.8,3464.2,0.919]
[1719833962872,0.49993047,3464.7,3464.4,0.919]
[1719833963054,0.49993047,3464.6,3464.4,0.919]
[1719833963370,3.0,3464.8,3464.4,0.919]
[1719833963577,1.08854343,3464.7,3464.4,0.919]
[1719833963754,0.49993358,3464.6,3464.4,0.919]
[1719833963947,5.88603,3465.0,3464.4,0.919]
[1719833964154,0.4999153,3464.9,3464.4,0.919]
[1719833964344,0.4999153,3464.8,3464.4,0.919]
[1719833964672,0.4999153,3464.7,3464.4,0.919]
[1719833965548,0.4999153,3464.9,3464.4,0.919]
[1719833965872,0.4999153,3464.8,3464.4,0.919]
[1719833966066,0.4999153,3464.7,3464.4,0.919]
[1719833966373,0.4999153,3464.6,3464.4,0.919]
[1719833966550,5.88605,3465.0,3464.4,0.919]
[1719833966551,3.0,3465.0,3464.4,0.919]
[1719833966884,0.830725,3464.9,3464.4,0.919]
[1719833967043,1.3306349,3464.9,3464.4,0.919]
[1719833967248,0.4999099,3464.8,3464.4,0.919]
[1719833969948,3.3860899,3464.8,3464.0,2.88678]
[1719833970149,0.49990999,3464.7,3464.3,0.919]
[1719833970349,2.88618,3464.8,3464.3,0.919]
[1719833970350,0.49990999,3464.6,3464.3,0.919]
[1719833970688,2.88618,3464.8,3464.3,0.919]
[1719833970853,0.49991485,3464.7,3464.3,0.919]
[1719833971051,0.49991485,3464.6,3464.3,0.919]
[1719833971386,3.42669513,3464.8,3464.3,0.919]
[1719833971584,0.49991425,3464.7,3464.3,0.919]
[1719833971789,0.49991425,3464.6,3464.3,0.919]
[1719833971997,3.42669513,3464.8,3464.3,0.919]
[1719833972292,5.886,3465.0,3464.2,0.919]
[1719833972293,4.21694896,3464.7,3464.2,0.919]
[1719833972472,0.49991396,3464.6,3464.2,0.919]
[1719833972671,5.86276396,3464.6,3464.2,0.919]
[1719833972876,0.49991396,3464.5,3464.2,0.919]
[1719833973582,0.4999395,3464.4,3464.2,0.919]
[1719833973787,2.4765,3464.6,3464.2,0.919]
[1719833973996,0.49994219,3464.5,3464.2,0.919]
[1719833974158,2.4765,3464.6,3464.2,0.919]
[1719833974159,0.49994219,3464.4,3464.2,0.919]
[1719833974362,5.34901,3464.8,3464.2,0.919]
[1719833974602,0.4999384,3464.7,3464.6,0.919]
[1719833974798,8.34886,3465.0,3464.6,0.919]
[1719833974959,8.34886,3465.0,3464.4,0.919]
[1719833975796,0.0408729,3464.9,3464.5,2.88635]
[1719833975996,5.34857,3465.3,3464.8,0.919]
[1719833976298,2.88584,3465.2,3464.8,0.919]
[1719833976878,2.88592,3465.1,3464.8,0.919]
[1719833977182,0.534872,3465.0,3464.6,0.919]
[1719833978087,2.88609,3464.9,3464.4,0.919]
[1719833978806,2.3353,3464.8,3464.4,0.919]
[1719833979608,5.22147,3464.8,3464.0,2.88679]
[1719833979796,5.22147,3464.8,3463.9,2.88684]
[1719833979797,5.22147,3464.8,3464.3,0.919]
[1719833979975,6.05783813,3464.8,3464.3,0.919]
[1719833983024,0.49992378,3464.7,3464.3,0.919]
[1719833983197,0.49992378,3464.6,3464.3,0.919]
[1719833983514,6.05783813,3464.8,3464.3,0.919]
[1719833983812,0.49991776,3464.7,3464.3,0.919]
[1719833984114,0.49991776,3464.6,3464.3,0.919]
[1719833984318,0.49991776,3464.5,3463.8,1.3732]
[1719833984526,0.49991776,3464.5,3464.1,0.919]
[1719833985492,3.421262,3464.6,3464.1,0.919]
[1719833985923,0.49993686,3464.5,3464.1,0.919]
[1719833986119,3.421262,3464.6,3464.3,0.919]
[1719833986391,0.49993822,3464.5,3464.3,0.919]
[1719833986702,0.49993822,3464.4,3464.3,0.919]
[1719833988443,0.49993822,3464.4,3464.1,0.919]
[1719833988619,0.49993822,3464.3,3464.1,0.919]
[1719833988822,0.49993822,3464.4,3464.1,0.919]
[1719833989017,2.88643,3464.5,3463.8,4.26019]
[1719833989222,0.49994802,3464.4,3464.1,0.919]
[1719833989465,2.88643,3464.5,3464.1,0.919]
[1719833989620,0.49994968,3464.3,3463.8,1.3732]
[1719833989938,0.49994968,3464.2,3464.1,0.919]
[1719833990112,0.49994968,3464.4,3464.1,0.919]
[1719833990707,0.03801642,3464.3,3464.1,0.919]
[1719833990903,0.49994968,3464.2,3464.1,0.919]
[1719833991134,0.53790095,3464.2,3464.1,0.919]
[1719833992117,0.03795127,3464.2,3464.1,0.919]
[1719833992418,0.49997246,3464.2,3464.1,0.919]
[1719833992617,0.53855088,3464.2,3464.1,0.919]
[1719833993655,0.53855088,3464.2,3463.6,2.88716]
[1719833993822,0.49997246,3464.1,3463.9,0.919]
[1719833994017,0.53837027,3464.1,3463.9,0.919]
[1719833994217,0.03839781,3464.1,3463.9,0.919]
[1719833994418,0.49998952,3464.0,3463.9,0.919]
[1719833994636,0.53848429,3464.0,3463.9,0.919]
[1719833995449,0.53849819,3464.0,3463.9,0.919]
[1719833998785,0.53848224,3464.0,3463.9,0.919]
[1719833999851,0.53848224,3464.0,3463.9,4.186516]
[1719834000085,0.03849477,3464.0,3463.9,4.186516]
[1719834000376,2.88628,3464.7,3464.0,2.88682]
[1719834000575,0.49994525,3464.6,3464.3,0.919]
[1719834000873,0.49994525,3464.5,3464.3,0.919]
[1719834001234,0.49992755,3464.4,3464.3,4.612155]
[1719834001454,7.33,3464.9,3464.4,2.88649]
[1719834001796,0.49989376,3464.8,3464.7,0.919]
[1719834004076,0.49987442,3464.8,3464.7,0.919]
[1719834004666,0.49987699,3464.8,3464.7,0.919]
[1719834005048,0.49987699,3464.9,3464.3,2.88652]
[1719834005259,3.38598699,3464.9,3464.1,4.25991]
[1719834005571,3.38598699,3464.9,3463.8,2.88698]
[1719834005572,2.88625,3464.7,3464.3,0.919]
[1719834005869,0.49987699,3464.6,3464.3,0.919]
[1719834006073,0.53872937,3464.6,3464.3,0.919]
[1719834006274,3.38629699,3464.5,3463.8,2.88698]
[1719834006438,0.49987699,3464.4,3464.1,0.919]
[1719834006645,0.53841658,3464.4,3463.8,2.88698]
[1719834006885,0.49987699,3464.3,3464.1,0.919]
[1719834007268,0.53840131,3464.2,3464.1,0.919]
[1719834008864,2.4707,3464.6,3464.1,0.919]
[1719834009067,0.03837081,3464.2,3464.0,2.88682]
[1719834009388,2.88617,3464.8,3464.1,0.919]
[1719834009539,0.49994656,3464.7,3464.6,0.919]
[1719834010371,2.3788,3464.9,3464.6,0.919]
[1719834010546,0.49989888,3464.7,3464.6,0.919]
[1719834010970,0.49989888,3464.8,3464.6,0.919]
[1719834011171,0.49989888,3464.7,3464.6,0.919]
[1719834011487,0.49989888,3464.8,3464.6,0.919]
[1719834011690,0.49989888,3464.7,3464.6,0.919]
[1719834011869,0.49989888,3464.8,3464.6,0.919]
[1719834013596,2.3582,3465.3,3464.6,3.80531]
[1719834013795,8.24396,3465.3,3464.9,0.919]
[1719834013969,0.49987807,3465.2,3464.9,0.919]
[1719834014159,0.49987105,3465.1,3464.9,0.919]
[1719834014359,0.49987105,3465.0,3464.9,0.919]
[1719834014562,0.49987105,3465.0,3464.7,0.919]
[1719834014780,3.0,3465.2,3464.7,0.919]
[1719834014781,0.49987105,3464.9,3464.7,0.919]
[1719834014981,0.49987105,3464.8,3464.7,0.919]
[1719834016916,0.49987453,3464.8,3464.7,0.919]
[1719834017086,0.49987441,3464.8,3464.7,0.919]
[1719834020104,0.49987399,3464.8,3464.6,0.919]
[1719834020322,0.49987399,3464.7,3464.2,1.3732]
[1719834020465,0.49987399,3465.0,3464.5,0.919]
[1719834020877,0.03900541,3464.9,3464.7,0.919]
[1719834021124,0.49987399,3464.8,3464.7,0.919]
[1719834021413,0.53888843,3464.8,3464.7,0.919]
[1719834023180,0.03901444,3464.8,3464.7,0.919]
[1719834023380,0.53889932,3464.8,3464.7,0.919]
[1719834023599,0.49988488,3464.8,3464.7,0.919]
[1719834023771,0.03912509,3464.8,3464.7,0.919]
[1719834023971,0.53900997,3464.8,3464.7,0.919]
[1719834024204,0.49988488,3464.8,3464.7,0.919]
[1719834024417,0.03912509,3464.8,3464.7,0.919]
[1719834024713,2.4971,3464.8,3464.5,0.919]
[1719834024880,0.49988488,3464.7,3464.5,0.919]
[1719834025081,0.53911823,3464.7,3464.5,0.919]
[1719834025281,0.53911823,3464.7,3464.1,2.88673]
[1719834025282,0.49988488,3464.6,3464.1,2.88673]
[1719834025500,0.53900733,3464.6,3464.4,0.919]
[1719834025811,0.53900733,3464.6,3464.2,0.919]
[1719834025812,0.49988488,3464.5,3464.2,0.919]
[1719834026015,3.38630488,3464.5,3464.2,0.919]
[1719834026202,2.78838488,3464.4,3464.2,0.919]
[1719834026514,2.78838488,3464.4,3463.8,0.919]
[1719834026515,3.38653481,3464.3,3463.8,0.919]
[1719834026684,0.49994481,3464.2,3463.8,0.919]
[1719834027017,0.49998236,3464.1,3463.8,0.919]
[1719834027214,0.49998236,3464.0,3463.8,0.919]
[1719834027406,0.53891986,3464.1,3463.8,0.919]
[1719834027609,0.49998671,3464.0,3463.8,0.919]
[1719834027796,0.0389375,3464.1,3463.8,0.919]
[1719834027997,0.49998704,3464.0,3463.8,0.919]
[1719834028319,0.03855206,3463.9,3463.8,0.919]
[1719834028707,2.88659,3464.3,3463.8,0.919]
[1719834028905,0.03867196,3463.9,3463.8,0.919]
[1719834029284,2.2885,3464.4,3463.8,0.919]
[1719834029485,0.53882434,3464.3,3464.0,0.919]
[1719834029823,0.49997695,3464.2,3464.0,0.919]
[1719834030025,0.49997695,3464.1,3464.0,0.919]
[1719834030322,0.03885871,3464.1,3464.0,0.919]
[1719834030679,2.2885,3464.4,3464.0,0.919]
[1719834030935,0.53880799,3464.3,3464.2,0.919]
[1719834031701,0.56897549,3464.3,3464.2,0.919]
[1719834032822,0.56896747,3464.3,3464.2,0.919]
[1719834033937,0.56896747,3464.3,3464.1,2.88674]
[1719834034115,0.06902752,3464.3,3464.2,0.919]
[1719834034315,0.56897273,3464.3,3464.2,0.919]
[1719834034521,0.49994521,3464.3,3464.2,0.919]
[1719834034729,0.49994521,3464.5,3464.0,0.919]
[1719834035043,0.06896154,3464.4,3464.0,0.919]
[1719834035406,2.4292,3464.2,3463.7,2.88705]
[1719834035705,0.56876429,3464.1,3463.9,0.919]
[1719834036006,0.06881908,3464.1,3463.9,0.919]
[1719834037630,0.49999586,3464.0,3463.9,0.919]
[1719834037942,0.56879117,3464.0,3463.9,0.919]
[1719834038308,0.06879531,3464.0,3463.9,0.919]
[1719834038534,0.56879302,3464.0,3463.9,0.919]
[1719834038732,2.4292,3464.2,3463.9,0.919]
[1719834038933,0.4999834,3464.1,3463.9,0.919]
[1719834039104,0.06886007,3464.1,3463.9,0.919]
[1719834039312,0.49999815,3464.0,3463.9,0.919]
[1719834039637,0.06886007,3464.1,3463.9,0.919]
[1719834039844,0.06882839,3464.0,3463.9,0.919]
[1719834040226,5.31589,3464.2,3463.9,0.919]
[1719834040540,5.31589,3464.2,3463.5,2.88724]
[1719834040736,0.06655148,3464.1,3463.8,0.919]
[1719834040939,0.06655148,3464.1,3463.5,2.88724]
[1719834040940,0.06655148,3464.1,3463.6,2.8871]
[1719834041237,0.06655148,3464.1,3464.0,0.919]
[1719834041948,0.5665407,3464.1,3464.0,0.919]
[1719834043511,0.06655148,3464.1,3463.9,2.88691]
[1719834043711,0.06655148,3464.1,3464.0,0.919]
[1719834044012,2.282,3464.4,3464.0,0.919]
[1719834044344,0.49996366,3464.3,3463.9,2.88691]
[1719834044544,0.06654315,3464.3,3464.2,0.919]
[1719834044745,0.56649648,3464.3,3464.2,0.919]
[1719834045349,0.06654315,3464.3,3464.2,0.919]
[1719834045849,2.2741,3464.7,3464.1,2.88672]
[1719834046011,3.0,3464.9,3464.2,1.3732]
[1719834046012,0.06652772,3464.3,3464.2,1.3732]
[1719834046209,0.06651594,3464.3,3464.2,5.96557284]
[1719834046551,5.15861,3465.0,3464.2,5.96557284]
[1719834046733,0.49989855,3464.9,3464.5,0.919]
[1719834046934,0.49989855,3464.8,3464.5,0.919]
[1719834047446,0.06688726,3464.7,3464.5,0.919]
[1719834047634,0.49989855,3464.6,3464.5,0.919]
[1719834047836,0.49989855,3464.9,3464.5,0.919]
[1719834048350,0.06691705,3464.8,3464.5,0.919]
[1719834048524,0.49989855,3464.7,3464.5,0.919]
[1719834048938,0.06680443,3464.6,3464.5,0.919]
[1719834049435,0.56670603,3464.6,3464.5,0.919]
[1719834049637,0.4999016,3464.6,3464.5,0.919]
[1719834049841,0.56668835,3464.6,3464.5,0.919]
[1719834052349,0.56668835,3464.6,3464.3,0.919]
[1719834052552,0.06678675,3464.6,3464.3,0.919]
[1719834052728,2.88608,3464.9,3464.3,0.919]
[1719834052729,0.49991789,3464.5,3464.3,0.919]
[1719834052942,0.49991789,3464.4,3464.3,0.919]
[1719834053121,2.88608,3464.9,3464.3,0.919]
[1719834053326,1.30438277,3464.8,3464.3,0.919]
[1719834053539,0.49992277,3464.7,3464.3,0.919]
[1719834053737,0.49992277,3464.6,3464.3,0.919]
[1719834053933,0.49992277,3464.5,3464.3,0.919]
[1719834054138,0.49992277,3464.4,3464.3,0.919]
[1719834054718,0.49992277,3464.4,3464.3,3.80558]
[1719834055424,0.5666475,3464.4,3464.3,3.80558]
[1719834055757,0.06672473,3464.4,3464.3,3.80558]
[1719834055958,0.06672473,3464.4,3464.3,4.14305402]
[1719834056118,0.49990257,3464.4,3464.3,4.14305402]
[1719834056320,0.5666273,3464.4,3464.3,4.14305402]
[1719834056522,0.56662511,3464.4,3464.3,4.14305402]
[1719834056722,0.06672473,3464.4,3464.3,4.14305402]
[1719834057023,5.2726,3465.0,3464.4,2.88649]
[1719834057218,0.49988871,3464.9,3464.7,0.919]
[1719834057419,0.49988871,3464.8,3464.7,0.919]
[1719834057957,0.56682478,3464.8,3464.7,0.919]
[1719834058760,0.56682478,3464.8,3464.4,0.919]
[1719834059071,2.95310607,3464.8,3464.3,0.919]
[1719834059368,0.49992227,3464.7,3464.3,0.919]
[1719834059659,0.49992227,3464.6,3464.3,0.919]
[1719834059826,0.06683541,3464.6,3464.3,0.919]
[1719834060143,0.49992227,3464.5,3464.3,0.919]
[1719834060351,0.49992227,3464.4,3464.3,0.919]
[1719834060550,0.06689183,3464.4,3464.3,0.919]
[1719834060734,0.5668141,3464.4,3464.3,0.919]
[1719834061579,0.56681401,3464.4,3464.3,0.919]
[1719834064727,0.56681401,3464.4,3463.8,4.26018]
[1719834064728,0.06689183,3464.4,3464.2,0.919]
[1719834064927,0.49994361,3464.3,3463.8,2.88693]
[1719834065201,0.49994361,3464.2,3464.0,0.919]
[1719834065374,0.06693275,3464.3,3464.0,0.919]
[1719834065545,0.06677351,3464.1,3464.0,0.919]
[1719834065740,2.88649,3464.5,3464.0,0.919]
[1719834065940,0.06675583,3464.1,3463.8,0.919]
[1719834066149,2.4951,3464.2,3463.8,0.919]
[1719834066388,0.06661094,3464.0,3463.8,0.919]
[1719834066546,2.4951,3464.2,3464.0,0.919]
[1719834066750,0.499972,3464.1,3464.0,0.919]
[1719834067005,0.499972,3464.1,3463.6,2.88716]
[1719834067310,0.499972,3464.0,3463.9,0.919]
[1719834067876,0.50000028,3464.0,3463.9,0.919]
[1719834068394,0.49999207,3464.0,3463.9,0.919]
[1719834071032,2.4951,3464.2,3463.9,0.919]
[1719834071320,0.49998998,3464.1,3463.9,0.919]
[1719834071519,0.49998998,3464.0,3463.9,0.919]
[1719834071683,0.49998998,3464.1,3463.9,0.919]
[1719834071888,0.49998998,3464.0,3463.9,0.919]
[1719834073415,0.49998998,3464.0,3463.3,4.26055]
[1719834073586,0.49998998,3464.0,3463.7,0.919]
[1719834073790,0.49998998,3463.9,3463.7,0.919]
[1719834074118,5.38177,3464.2,3463.7,0.919]
[1719834074426,0.49999714,3464.1,3463.5,2.94493916]
[1719834074610,0.49999714,3464.0,3463.9,0.919]
[1719834074794,5.38177,3464.2,3463.9,0.919]
[1719834074795,0.49999714,3464.1,3463.9,0.919]
[1719834075111,0.06654046,3464.0,3463.9,0.919]
[1719834075297,0.5665376,3464.0,3463.9,0.919]
[1719834077512,0.06654046,3464.0,3463.9,0.919]
[1719834077696,0.56654631,3464.0,3463.9,0.919]
[1719834078318,0.56655164,3464.0,3463.9,0.919]
[1719834080022,0.06654046,3464.0,3463.9,0.919]
[1719834080227,0.06654046,3464.0,3463.9,4.48098358]
[1719834080388,8.34195,3464.7,3463.9,4.48098358]
[1719834080581,8.34195,3464.7,3464.2,0.919]
[1719834080780,0.56642653,3464.6,3464.2,0.919]
[1719834081021,0.49995891,3464.5,3464.2,0.919]
[1719834081175,0.49995891,3464.4,3464.2,0.919]
[1719834081376,0.49995891,3464.3,3464.2,0.919]
[1719834081791,0.56653165,3464.3,3464.2,0.919]
[1719834082693,0.56653165,3464.3,3464.0,0.919]
[1719834082901,0.49995891,3464.2,3464.0,0.919]
[1719834083250,0.06647281,3464.1,3463.4,2.88727]
[1719834083436,0.06647281,3464.1,3463.5,0.64901594]
[1719834083437,0.49995891,3464.0,3463.5,0.64901594]
[1719834083583,0.49995891,3464.0,3463.7,0.919]
[1719834083782,0.06637782,3463.9,3463.7,0.919]
[1719834084178,2.4699,3464.2,3463.5,2.88725]
[1719834084386,0.5000118,3464.1,3463.8,0.919]
[1719834084584,0.5000118,3464.0,3463.8,0.919]
[1719834084783,0.5000118,3463.9,3463.8,0.919]
[1719834086315,5.25778,3464.5,3463.8,0.919]
[1719834086495,5.25778,3464.5,3464.0,0.919]
[1719834086496,0.500003,3464.4,3464.0,0.919]
[1719834086691,0.500003,3464.3,3464.0,0.919]
[1719834086927,0.500003,3464.2,3464.0,0.919]
[1719834087110,0.50000118,3464.1,3464.0,0.919]
[1719834088404,0.50000118,3464.1,3464.0,1.59406741]
[1719834089206,0.50000118,3464.1,3464.0,0.919]
[1719834090012,0.50000118,3464.1,3463.6,1.3732]
[1719834090013,2.85160118,3464.1,3463.6,2.8871]
[1719834090335,0.4999949,3464.0,3463.8,0.919]
[1719834090538,0.4999949,3463.9,3463.8,0.919]
[1719834090838,0.50000263,3463.9,3463.8,0.919]
[1719834093299,2.3105,3464.3,3463.8,1.588315]
[1719834093651,0.49998056,3464.2,3464.0,0.919]
[1719834093818,0.49998056,3464.1,3464.0,0.919]
[1719834096132,0.56654105,3464.1,3464.0,0.919]
[1719834096747,3.45329438,3464.1,3463.4,2.8873]
[1719834097061,0.49998389,3464.0,3463.7,0.919]
[1719834097413,0.06644782,3463.9,3463.7,0.919]
[1719834097613,0.49998389,3463.8,3463.7,0.919]
[1719834098014,0.56636653,3463.8,3463.7,0.919]
[1719834099941,0.56640988,3463.8,3463.7,0.919]
[1719834100318,2.85090988,3463.8,3463.6,0.919]
[1719834100518,0.50002724,3463.7,3463.6,0.919]
[1719834100721,0.56636238,3463.7,3463.6,0.919]
[1719834103112,0.06633514,3463.7,3463.6,0.919]
[1719834103313,0.50002136,3463.7,3463.6,0.919]
[1719834103627,0.06637627,3463.7,3463.6,0.919]
[1719834103826,0.56639756,3463.7,3463.6,0.919]
[1719834104029,0.50002129,3463.7,3463.6,0.919]
[1719834104217,0.56625135,3463.7,3463.6,0.919]
[1719834107026,0.56625135,3463.7,3463.6,4.48130006]
[1719834107231,0.06623006,3463.7,3463.6,7.36846006]
[1719834107431,2.3218,3464.4,3463.7,2.88702]
[1719834107739,0.06636429,3464.3,3463.9,0.919]
[1719834109225,2.95294429,3464.3,3463.9,0.919]
[1719834109720,2.95294429,3464.3,3463.6,2.88716]
[1719834109925,2.88667,3464.2,3463.8,0.919]
[1719834110273,0.06653458,3464.1,3463.8,0.919]
[1719834110771,2.3136,3464.0,3463.8,0.919]
[1719834111266,0.06647727,3463.9,3463.8,0.919]
[1719834113952,0.06647727,3463.9,3463.6,0.919]
[1719834114959,0.06647727,3463.9,3463.2,2.88745]
[1719834115164,0.06647727,3463.9,3463.6,0.919]
[1719834115873,0.06647727,3463.9,3463.4,0.05774015]
[1719834116027,0.06647727,3463.9,3463.7,0.919]
[1719834116235,0.500012,3463.8,3463.7,0.919]
[1719834116650,0.56644177,3463.8,3463.7,0.919]
[1719834119971,0.06642977,3463.8,3463.7,0.919]
[1719834120169,0.56643224,3463.8,3463.7,0.919]
[1719834120365,0.50000247,3463.8,3463.7,0.919]
[1719834120553,0.5664318,3463.8,3463.7,1.30539702]
[1719834122369,0.5664318,3463.8,3463.7,0.919]
[1719834122793,0.56643379,3463.8,3463.7,0.919]
[1719834123647,0.56643861,3463.8,3463.7,0.919]
[1719834124437,0.56643861,3463.8,3463.7,3.80608]
[1719834126048,0.56642449,3463.8,3463.7,3.80608]
[1719834126248,0.56642449,3463.8,3463.7,4.61850062]
[1719834126777,0.56642449,3463.8,3463.7,7.50558062]
[1719834126939,2.2699,3464.5,3463.9,2.88688]
[1719834127140,0.56666326,3464.4,3464.1,0.919]
[1719834127337,0.49996127,3464.3,3464.1,0.919]
[1719834127542,0.56655061,3464.2,3464.1,0.919]
[1719834129100,0.56655061,3464.2,3464.1,4.38435348]
[1719834129373,2.4578,3465.0,3464.1,4.3266216]
[1719834129588,0.49989013,3464.9,3464.6,0.919]
[1719834129747,0.49989013,3464.8,3464.6,0.919]
[1719834129938,0.56679316,3464.7,3464.6,0.919]
[1719834130851,0.56679316,3464.7,3464.4,2.8865]
[1719834131057,0.56679316,3464.7,3464.4,0.919]
[1719834131058,0.49989013,3464.6,3464.4,0.919]
[1719834131257,2.3037,3464.5,3464.1,2.88674]
[1719834131477,0.49989013,3464.4,3464.3,0.919]
[1719834131787,0.56685087,3464.4,3464.3,0.919]
[1719834131961,0.56685087,3464.4,3464.1,2.88674]
[1719834132168,0.06696074,3464.4,3464.1,3.80574]
[1719834133469,0.06696074,3464.4,3464.1,0.919]
[1719834134397,0.49993878,3464.3,3464.1,0.919]
[1719834134561,0.06696074,3464.4,3464.1,0.919]
[1719834134761,0.49994013,3464.3,3464.1,0.919]
[1719834134986,0.06679507,3464.2,3464.1,0.919]
[1719834135189,0.06679507,3464.2,3463.8,2.88694]
[1719834135392,2.3037,3464.5,3464.0,0.919]
[1719834135691,0.06674758,3464.1,3464.0,0.919]